[Event "European Rapid Championship 2021"]
[Site "Katowice"]
[Date "2021.12.18"]
[Round "4.7"]
[White "Kacprzak, Karol"]
[Black "Kowalski, Igor"]
[Result "1/2-1/2"]
[ECO "C16"]
[WhiteElo "2038"]
[BlackElo "2295"]
[Annotator "NA"]
[PlyCount "39"]
[EventDate "2021.12.18"]
[EventType "swiss"]
[EventCountry "POL"]
[SourceTitle "playchess.com"]
[Source "ChessBase"]
[SourceQuality "1"]
[TimeControl "900+10"]

1. e4 {[%emt 0:00:01]} e6 {[%emt 0:00:01]} 2. d4 {[%emt 0:00:03]} d5 {[%emt 0:
00:01]} 3. Nc3 {[%emt 0:00:07]} Bb4 {[%emt 0:00:02]} 4. e5 {[%emt 0:00:10]} Ne7
{[%emt 0:00:01]} 5. Bd2 {[%emt 0:00:31]} b6 {[%emt 0:00:03]} 6. f4 {[%emt 0:00:
32]} O-O {[%emt 0:00:21]} 7. Nf3 {[%emt 0:00:06]} Ba6 {[%emt 0:00:16]} 8. Bxa6
{[%emt 0:00:04]} Nxa6 {[%emt 0:00:01]} 9. Ne2 {[%emt 0:00:01]} Bxd2+ {[%emt 0:
00:05]} 10. Qxd2 {[%emt 0:00:03]} c5 {[%emt 0:00:12]} 11. c3 {[%emt 0:02:31]}
cxd4 {[%emt 0:01:31]} 12. cxd4 {[%emt 0:00:26]} Qd7 {[%emt 0:00:41]} 13. O-O {
[%emt 0:00:29]} Rac8 {[%emt 0:00:12]} 14. Rac1 {[%emt 0:00:56]} h6 {[%emt 0:00:
14]} 15. Ng3 {[%emt 0:01:32]} Qa4 {[%emt 0:00:34]} 16. a3 {[%emt 0:00:32]} Nc7
{[%emt 0:02:38]} 17. Qd3 {[%emt 0:02:53]} Qb5 {[%emt 0:03:48]} 18. Qd2 {
[%emt 0:00:51]} Qa4 {[%emt 0:01:29]} 19. Qd3 {[%emt 0:00:09]} Qb5 {[%emt 0:01:
25]} 20. Qd2 {[%emt 0:01:01]} 1/2-1/2

[Event "European Rapid Championship 2021"]
[Site "Katowice"]
[Date "2021.12.18"]
[Round "4.8"]
[White "Mis, Mieszko"]
[Black "Durarbayli, Vasif"]
[Result "1/2-1/2"]
[ECO "E32"]
[WhiteElo "2237"]
[BlackElo "2532"]
[Annotator "ChessBase"]
[PlyCount "83"]
[EventDate "2021.12.18"]
[EventType "swiss"]
[EventCountry "POL"]
[SourceTitle "playchess.com"]
[Source "ChessBase"]
[SourceQuality "1"]
[TimeControl "900+10"]

1. d4 {[%emt 0:00:03]} Nf6 {[%emt 0:00:00]} 2. c4 {[%emt 0:00:03]} e6 {[%emt 0:
00:01]} 3. Nc3 {[%emt 0:00:10]} Bb4 {[%emt 0:00:02]} 4. Qc2 {[%emt 0:00:04]} d6
{[%emt 0:00:08]} 5. Nf3 {[%emt 0:00:12]} Nbd7 {[%emt 0:00:04]} 6. g3 {[%emt 0:
00:21]} b6 {[%emt 0:00:03]} 7. Bg2 {[%emt 0:00:04]} Bb7 {[%emt 0:00:02]} 8. O-O
{[%emt 0:00:05]} Bxc3 {[%emt 0:00:08]} 9. Qxc3 {[%emt 0:00:02]} O-O {[%emt 0:
00:03]} 10. b3 {[%emt 0:00:05]} a5 {[%emt 0:00:16]} 11. Bb2 {[%emt 0:00:35]}
Qe7 {[%emt 0:00:10]} 12. Rad1 {[%emt 0:01:09]} Ne4 {[%emt 0:01:25]} 13. Qc2 {
[%emt 0:00:08]} f5 {[%emt 0:00:03]} 14. d5 {[%emt 0:00:52]} exd5 {[%emt 0:01:
17]} 15. cxd5 {[%emt 0:00:09]} Ndc5 {[%emt 0:00:03]} 16. Nd4 {[%emt 0:02:32]}
Rae8 {[%emt 0:04:25]} 17. e3 {[%emt 0:02:47]} g6 {[%emt 0:03:48]} 18. Ne6 {
[%emt 0:00:41]} Nxe6 {[%emt 0:00:03]} 19. dxe6 {[%emt 0:00:02]} h5 {[%emt 0:00:
20]} 20. a3 {[%emt 0:02:51]} Kh7 {[%emt 0:00:28]} 21. b4 {[%emt 0:00:30]} Rc8 {
[%emt 0:02:03]} 22. bxa5 {[%emt 0:00:46]} bxa5 {[%emt 0:00:07]} 23. Rb1 {
[%emt 0:00:44]} Qxe6 {[%emt 0:00:43]} 24. Bc3 {[%emt 0:01:56]} Ba8 {[%emt 0:00:
57]} 25. Bxa5 {[%emt 0:00:10]} Rf7 {[%emt 0:00:02]} 26. Rfd1 {[%emt 0:00:30]}
Ng5 {[%emt 0:00:33]} 27. h4 {[%emt 0:00:46]} Bxg2 {[%emt 0:01:13]} 28. Kxg2 {
[%emt 0:00:03]} Ne4 {[%emt 0:00:01]} 29. Bc3 {[%emt 0:00:16]} Qc4 {[%emt 0:00:
16]} 30. Rdc1 {[%emt 0:00:11]} Qc6 {[%emt 0:00:15]} 31. Bd4 {[%emt 0:00:17]}
Qa8 {[%emt 0:00:22]} 32. f3 {[%emt 0:00:35]} Nf6 {[%emt 0:00:01]} 33. Qb3 {
[%emt 0:00:22]} Kg7 {[%emt 0:00:46]} 34. Qe6 {[%emt 0:00:27]} c5 {[%emt 0:00:
02]} 35. Bxf6+ {[%emt 0:00:12]} Rxf6 {[%emt 0:00:01]} 36. Qe7+ {[%emt 0:00:02]}
Rf7 {[%emt 0:00:06]} 37. Qxd6 {[%emt 0:00:01]} Kh7 {[%emt 0:00:31]} 38. Rb6 {
[%emt 0:00:19]} Rg7 {[%emt 0:00:01]} 39. Ra6 {[%emt 0:00:18]} Qb7 40. Rb6 {
[%emt 0:00:02]} Qa8 {[%emt 0:00:01]} 41. Ra6 {[%emt 0:00:01]} Qb7 {[%emt 0:00:
04]} 42. Rb6 {[%emt 0:00:05]} 1/2-1/2

[Event "European Rapid Championship 2021"]
[Site "Katowice"]
[Date "2021.12.18"]
[Round "4.8"]
[White "Malek, Jan"]
[Black "Lubczynski, Rafal"]
[Result "1-0"]
[ECO "C41"]
[WhiteElo "2029"]
[BlackElo "2289"]
[Annotator "NA"]
[PlyCount "37"]
[EventDate "2021.12.18"]
[EventType "swiss"]
[EventCountry "POL"]
[SourceTitle "playchess.com"]
[Source "ChessBase"]
[SourceQuality "1"]
[TimeControl "900+10"]

1. e4 {[%emt 0:00:01]} d6 {[%emt 0:01:22]} 2. d4 {[%emt 0:00:02]} Nf6 {[%emt 0:
00:01]} 3. Nc3 {[%emt 0:00:01]} e5 {[%emt 0:00:01]} 4. Nf3 {[%emt 0:00:01]}
Nbd7 {[%emt 0:00:01]} 5. Rg1 {[%emt 0:00:01]} g6 {[%emt 0:00:03]} 6. g4 {
[%emt 0:00:14]} Bg7 {[%emt 0:00:01]} 7. Be3 {[%emt 0:00:10]} c6 {[%emt 0:00:07]
} 8. a4 {[%emt 0:00:30]} Qa5 {[%emt 0:00:39]} 9. Nd2 {[%emt 0:00:06]} h5 {
[%emt 0:08:03]} 10. Nc4 {[%emt 0:02:08]} Qc7 {[%emt 0:00:01]} 11. dxe5 {
[%emt 0:00:47]} dxe5 {[%emt 0:00:01]} 12. h3 {[%emt 0:00:29]} hxg4 {[%emt 0:00:
02]} 13. hxg4 {[%emt 0:00:01]} Bf8 {[%emt 0:00:46]} 14. Qf3 {[%emt 0:00:45]}
Be7 {[%emt 0:03:06]} 15. Rd1 {[%emt 0:00:20]} Nf8 {[%emt 0:00:14]} 16. Nd6+ {
[%emt 0:00:15]} Bxd6 {[%emt 0:01:21]} 17. Qxf6 {[%emt 0:00:02]} Rh2 {[%emt 0:
00:02]} 18. Qxd6 {[%emt 0:00:06]} Qa5 {[%emt 0:00:05]} 19. Bc5 {[%emt 0:00:10]}
1-0

[Event "European Rapid Championship 2021"]
[Site "Katowice"]
[Date "2021.12.18"]
[Round "4.9"]
[White "Povilaitis, Tomas"]
[Black "Budrewicz, Krzysztof"]
[Result "0-1"]
[ECO "B06"]
[WhiteElo "2006"]
[BlackElo "2281"]
[Annotator "NA"]
[PlyCount "118"]
[EventDate "2021.12.18"]
[EventType "swiss"]
[EventCountry "POL"]
[SourceTitle "playchess.com"]
[Source "ChessBase"]
[SourceQuality "1"]
[TimeControl "900+10"]

1. e4 {[%emt 0:00:03]} g6 {[%emt 0:00:16]} 2. d4 {[%emt 0:00:02]} Bg7 {[%emt 0:
00:01]} 3. Nc3 {[%emt 0:00:01]} c5 {[%emt 0:00:10]} 4. d5 {[%emt 0:01:08]} d6 {
[%emt 0:00:18]} 5. f4 {[%emt 0:00:39]} a6 {[%emt 0:00:09]} 6. a4 {[%emt 0:00:
04]} e6 {[%emt 0:00:03]} 7. Nf3 {[%emt 0:00:10]} exd5 {[%emt 0:00:11]} 8. Nxd5
{[%emt 0:00:17]} Ne7 {[%emt 0:00:58]} 9. Bc4 {[%emt 0:00:36]} Nbc6 {[%emt 0:00:
17]} 10. O-O {[%emt 0:00:16]} O-O {[%emt 0:01:17]} 11. c3 {[%emt 0:00:54]} Na5
{[%emt 0:00:42]} 12. Nxe7+ {[%emt 0:00:21]} Qxe7 {[%emt 0:00:02]} 13. Bd5 {
[%emt 0:00:01]} Be6 {[%emt 0:00:15]} 14. Be3 {[%emt 0:01:13]} Rfe8 {[%emt 0:00:
37]} 15. Bf2 {[%emt 0:00:02]} Bxd5 {[%emt 0:00:12]} 16. Qxd5 {[%emt 0:00:02]}
Qxe4 {[%emt 0:01:06]} 17. Qxd6 {[%emt 0:00:02]} Rad8 {[%emt 0:00:01]} 18. Qb6 {
[%emt 0:01:11]} Nc4 {[%emt 0:00:25]} 19. Qxc5 {[%emt 0:01:37]} Nxb2 {[%emt 0:
00:11]} 20. Ng5 {[%emt 0:03:52]} Qc6 {[%emt 0:05:08]} 21. Qb4 {[%emt 0:02:32]}
Re2 {[%emt 0:00:34]} 22. Rab1 {[%emt 0:02:05]} Bxc3 {[%emt 0:01:19]} 23. Qb3 {
[%emt 0:00:01]} Rd7 {[%emt 0:00:30]} 24. Rbc1 {[%emt 0:00:21]} Nxa4 {[%emt 0:
00:08]} 25. Nf3 {[%emt 0:01:09]} Rb2 {[%emt 0:00:58]} 26. Qa3 {[%emt 0:00:16]}
f6 {[%emt 0:02:27]} 27. Rxc3 {[%emt 0:00:17]} Qxc3 {[%emt 0:00:13]} 28. Qxa4 {
[%emt 0:00:01]} Qd3 {[%emt 0:00:25]} 29. Re1 {[%emt 0:00:03]} Kg7 {[%emt 0:00:
19]} 30. Qa1 {[%emt 0:00:18]} Re2 {[%emt 0:00:08]} 31. Rf1 {[%emt 0:00:05]} Qe4
{[%emt 0:00:07]} 32. Bh4 {[%emt 0:00:29]} Rd6 {[%emt 0:00:13]} 33. Qc3 {
[%emt 0:00:02]} Qe3+ {[%emt 0:00:11]} 34. Qxe3 {[%emt 0:00:01]} Rxe3 {[%emt 0:
00:01]} 35. Rc1 {[%emt 0:00:08]} Rd7 {[%emt 0:00:09]} 36. Bf2 {[%emt 0:00:03]}
Re4 {[%emt 0:00:01]} 37. g3 {[%emt 0:00:10]} Ra4 {[%emt 0:00:01]} 38. Nd4 {
[%emt 0:00:13]} Kf7 {[%emt 0:00:13]} 39. f5 {[%emt 0:00:02]} b5 {[%emt 0:00:05]
} 40. Nb3 {[%emt 0:00:15]} Rc4 {[%emt 0:00:12]} 41. Ra1 {[%emt 0:00:16]} Rd6 {
[%emt 0:00:05]} 42. Nc5 {[%emt 0:00:15]} Rc6 {[%emt 0:00:01]} 43. fxg6+ {
[%emt 0:00:21]} hxg6 {[%emt 0:00:01]} 44. Nxa6 {[%emt 0:00:08]} Ra4 {[%emt 0:
00:03]} 45. Rxa4 {[%emt 0:00:09]} bxa4 {[%emt 0:00:01]} 46. Nb4 {[%emt 0:00:16]
} Rc1+ {[%emt 0:00:01]} 47. Kg2 {[%emt 0:00:01]} a3 {[%emt 0:00:06]} 48. Kf3 {
[%emt 0:00:25]} Rc3+ {[%emt 0:00:13]} 49. Ke2 {[%emt 0:00:07]} a2 {[%emt 0:00:
01]} 50. Nxa2 {[%emt 0:00:04]} Rc2+ {[%emt 0:00:01]} 51. Kf3 {[%emt 0:00:03]}
Rxa2 {[%emt 0:00:01]} 52. h4 {[%emt 0:00:07]} Ra4 {[%emt 0:00:08]} 53. Be3 {
[%emt 0:00:08]} Ke6 {[%emt 0:00:01]} 54. g4 {[%emt 0:00:06]} f5 {[%emt 0:00:05]
} 55. gxf5+ {[%emt 0:00:14]} Kxf5 {[%emt 0:00:01]} 56. Bg5 {[%emt 0:00:03]}
Ra3+ {[%emt 0:00:01]} 57. Kg2 {[%emt 0:00:06]} Kg4 {[%emt 0:00:02]} 58. Bf6 {
[%emt 0:00:12]} Rg3+ {[%emt 0:00:04]} 59. Kf2 {[%emt 0:00:18]} Rf3+ {[%emt 0:
00:01]} 0-1

[Event "European Rapid Championship 2021"]
[Site "Katowice"]
[Date "2021.12.18"]
[Round "4.10"]
[White "Janaszak, Dawid"]
[Black "Tazbir, Marcin"]
[Result "1/2-1/2"]
[ECO "B13"]
[WhiteElo "2328"]
[BlackElo "2514"]
[Annotator "ChessBase"]
[PlyCount "38"]
[EventDate "2021.12.18"]
[EventType "swiss"]
[EventCountry "POL"]
[SourceTitle "playchess.com"]
[Source "ChessBase"]
[SourceQuality "1"]
[TimeControl "900+10"]

1. e4 {[%emt 0:00:03]} c6 {[%emt 0:03:39]} 2. d4 {[%emt 0:00:02]} d5 {[%emt 0:
00:01]} 3. exd5 {[%emt 0:00:02]} cxd5 {[%emt 0:00:01]} 4. Bd3 {[%emt 0:00:03]}
Nc6 {[%emt 0:00:03]} 5. c3 {[%emt 0:00:03]} Qc7 {[%emt 0:00:01]} 6. Ne2 {
[%emt 0:00:09]} Bg4 {[%emt 0:00:07]} 7. O-O {[%emt 0:00:07]} e6 {[%emt 0:00:04]
} 8. Qe1 {[%emt 0:00:12]} Bd6 {[%emt 0:00:20]} 9. f3 {[%emt 0:00:19]} Bh5 {
[%emt 0:00:02]} 10. Qh4 {[%emt 0:00:11]} Bg6 {[%emt 0:00:39]} 11. Bxg6 {
[%emt 0:00:18]} fxg6 {[%emt 0:00:01]} 12. Bf4 {[%emt 0:00:46]} Nf6 {[%emt 0:01:
06]} 13. Na3 {[%emt 0:00:19]} a6 {[%emt 0:00:07]} 14. Nc2 {[%emt 0:01:01]} O-O
{[%emt 0:00:07]} 15. Bxd6 {[%emt 0:00:11]} Qxd6 {[%emt 0:00:01]} 16. Qg3 {
[%emt 0:00:36]} Qd7 {[%emt 0:00:14]} 17. Ne1 {[%emt 0:00:22]} Nh5 {[%emt 0:00:
05]} 18. Qg4 {[%emt 0:00:07]} Nf6 {[%emt 0:00:18]} 19. Qg3 {[%emt 0:00:03]} Nh5
{[%emt 0:01:11]} 1/2-1/2

[Event "European Rapid Championship 2021"]
[Site "Katowice"]
[Date "2021.12.18"]
[Round "4.10"]
[White "Czernek, Tymon"]
[Black "Kuegel, Tobias"]
[Result "1/2-1/2"]
[ECO "C42"]
[WhiteElo "2197"]
[BlackElo "2242"]
[Annotator "NA"]
[PlyCount "64"]
[EventDate "2021.12.18"]
[EventType "swiss"]
[EventCountry "POL"]
[SourceTitle "playchess.com"]
[Source "ChessBase"]
[SourceQuality "1"]
[TimeControl "900+10"]

1. e4 {[%emt 0:00:02]} e5 {[%emt 0:00:02]} 2. Nf3 {[%emt 0:00:02]} Nf6 {
[%emt 0:00:04]} 3. Nxe5 {[%emt 0:00:02]} Nc6 {[%emt 0:00:49]} 4. Nxc6 {[%emt 0:
00:06]} dxc6 {[%emt 0:00:02]} 5. Nc3 {[%emt 0:00:09]} Bc5 {[%emt 0:00:14]} 6.
Be2 {[%emt 0:00:09]} Qd4 {[%emt 0:02:50]} 7. O-O {[%emt 0:00:02]} Nxe4 {
[%emt 0:00:04]} 8. Nxe4 {[%emt 0:00:02]} Qxe4 {[%emt 0:00:02]} 9. Bf3 {[%emt 0:
00:02]} Qh4 {[%emt 0:01:13]} 10. g3 {[%emt 0:00:05]} Qf6 {[%emt 0:00:02]} 11.
c3 {[%emt 0:00:53]} O-O {[%emt 0:01:06]} 12. d4 {[%emt 0:00:02]} Bd6 {[%emt 0:
00:13]} 13. Bg2 {[%emt 0:00:05]} Be6 {[%emt 0:00:18]} 14. Be3 {[%emt 0:00:08]}
Bd5 {[%emt 0:01:01]} 15. Qc2 {[%emt 0:02:02]} Rfe8 {[%emt 0:01:23]} 16. Rfe1 {
[%emt 0:00:35]} Bxg2 {[%emt 0:02:19]} 17. Kxg2 {[%emt 0:00:03]} Qe6 {[%emt 0:
00:10]} 18. f3 {[%emt 0:00:44]} Qg6 {[%emt 0:01:28]} 19. Qxg6 {[%emt 0:00:39]}
hxg6 {[%emt 0:00:03]} 20. Bf2 {[%emt 0:00:31]} f5 {[%emt 0:00:42]} 21. f4 {
[%emt 0:00:58]} Kf7 {[%emt 0:00:46]} 22. Kf3 {[%emt 0:00:22]} Rxe1 {[%emt 0:01:
11]} 23. Rxe1 {[%emt 0:00:02]} Rh8 {[%emt 0:00:28]} 24. Bg1 {[%emt 0:00:02]} a6
{[%emt 0:00:16]} 25. Kg2 {[%emt 0:00:35]} Re8 {[%emt 0:00:57]} 26. Rxe8 {
[%emt 0:00:27]} Kxe8 {[%emt 0:00:01]} 27. Kf3 {[%emt 0:00:03]} Kf7 {[%emt 0:00:
03]} 28. c4 {[%emt 0:00:28]} Ke6 {[%emt 0:00:45]} 29. Be3 {[%emt 0:00:10]} Be7
{[%emt 0:00:29]} 30. Ke2 {[%emt 0:00:19]} Bf6 {[%emt 0:00:02]} 31. Kd3 {
[%emt 0:00:10]} Kd6 {[%emt 0:00:23]} 32. b3 {[%emt 0:00:08]} Ke6 {[%emt 0:00:
11]} 1/2-1/2

[Event "European Rapid Championship 2021"]
[Site "Katowice"]
[Date "2021.12.18"]
[Round "4.11"]
[White "Stefansson, Hannes"]
[Black "Mulet, Piotr"]
[Result "1-0"]
[ECO "C18"]
[WhiteElo "2519"]
[BlackElo "2175"]
[Annotator "ChessBase"]
[PlyCount "115"]
[EventDate "2021.12.18"]
[EventType "swiss"]
[EventCountry "POL"]
[SourceTitle "playchess.com"]
[Source "ChessBase"]
[SourceQuality "1"]
[TimeControl "900+10"]

1. e4 {[%emt 0:00:01]} e6 {[%emt 0:00:02]} 2. d4 {[%emt 0:00:01]} d5 {[%emt 0:
00:02]} 3. Nc3 {[%emt 0:00:01]} Bb4 {[%emt 0:00:03]} 4. e5 {[%emt 0:00:01]} c5
{[%emt 0:00:02]} 5. a3 {[%emt 0:00:01]} Bxc3+ {[%emt 0:00:02]} 6. bxc3 {
[%emt 0:00:01]} Ne7 {[%emt 0:00:05]} 7. Qg4 {[%emt 0:00:05]} O-O {[%emt 0:00:
05]} 8. Bd3 {[%emt 0:00:04]} f5 {[%emt 0:00:16]} 9. exf6 {[%emt 0:00:03]} Rxf6
{[%emt 0:00:02]} 10. Qh5 {[%emt 0:00:09]} g6 {[%emt 0:00:18]} 11. Qd1 {[%emt 0:
00:02]} Nbc6 {[%emt 0:00:18]} 12. Nf3 {[%emt 0:00:03]} c4 {[%emt 0:00:17]} 13.
Be2 {[%emt 0:00:08]} Bd7 {[%emt 0:00:02]} 14. O-O {[%emt 0:00:32]} Qf8 {
[%emt 0:00:27]} 15. Re1 {[%emt 0:00:37]} h6 {[%emt 0:00:14]} 16. Bf1 {[%emt 0:
00:58]} g5 {[%emt 0:00:17]} 17. h4 {[%emt 0:00:14]} g4 {[%emt 0:01:30]} 18. Ne5
{[%emt 0:00:04]} Nxe5 {[%emt 0:00:08]} 19. dxe5 {[%emt 0:00:01]} Rxf2 {[%emt 0:
00:48]} 20. Qxg4+ {[%emt 0:00:05]} Kh7 {[%emt 0:00:04]} 21. Be2 {[%emt 0:00:47]
} Rf5 {[%emt 0:01:30]} 22. Qg3 {[%emt 0:01:01]} Qg7 {[%emt 0:02:29]} 23. Qxg7+
{[%emt 0:00:09]} Kxg7 {[%emt 0:00:01]} 24. Bg4 {[%emt 0:00:02]} Rf7 {[%emt 0:
00:04]} 25. Be3 {[%emt 0:00:06]} Nf5 {[%emt 0:00:06]} 26. Bf2 {[%emt 0:00:11]}
Ba4 {[%emt 0:00:15]} 27. Re2 {[%emt 0:00:02]} b6 {[%emt 0:00:16]} 28. Kh2 {
[%emt 0:00:03]} Kh7 {[%emt 0:01:06]} 29. Rf1 {[%emt 0:01:04]} Rg8 {[%emt 0:00:
22]} 30. Bf3 {[%emt 0:00:19]} Rfg7 {[%emt 0:00:56]} 31. Rd2 {[%emt 0:00:32]}
Be8 {[%emt 0:00:30]} 32. Rg1 {[%emt 0:00:42]} Ng3 {[%emt 0:00:21]} 33. Rd4 {
[%emt 0:00:14]} Nf5 {[%emt 0:00:41]} 34. Rf4 {[%emt 0:00:01]} Ba4 {[%emt 0:01:
06]} 35. Rc1 {[%emt 0:01:33]} Ng3 {[%emt 0:00:21]} 36. Rf6 {[%emt 0:00:59]} Ne4
{[%emt 0:00:01]} 37. Bxe4+ {[%emt 0:00:02]} dxe4 {[%emt 0:00:00]} 38. g3 {
[%emt 0:00:03]} e3 {[%emt 0:00:07]} 39. Bxe3 {[%emt 0:00:03]} Rg6 {[%emt 0:00:
18]} 40. g4 {[%emt 0:00:29]} Bc6 {[%emt 0:01:40]} 41. g5 {[%emt 0:00:38]} hxg5
{[%emt 0:00:44]} 42. hxg5 {[%emt 0:00:02]} Kg7 {[%emt 0:00:30]} 43. Kg3 {
[%emt 0:00:17]} Rxf6 {[%emt 0:00:58]} 44. exf6+ {[%emt 0:00:02]} Kg6 {[%emt 0:
00:18]} 45. Rd1 {[%emt 0:00:03]} Bd5 {[%emt 0:00:06]} 46. Kf4 {[%emt 0:00:02]}
Rh8 {[%emt 0:00:15]} 47. Ke5 {[%emt 0:00:04]} Rh2 {[%emt 0:00:06]} 48. Rf1 {
[%emt 0:00:05]} Rh7 {[%emt 0:00:18]} 49. Kd6 {[%emt 0:00:05]} Rf7 {[%emt 0:00:
34]} 50. a4 {[%emt 0:01:04]} Rf8 {[%emt 0:00:16]} 51. Rf2 {[%emt 0:00:08]} Rd8+
{[%emt 0:00:15]} 52. Ke7 {[%emt 0:00:09]} Rb8 {[%emt 0:00:04]} 53. Rh2 {
[%emt 0:00:19]} Rb7+ {[%emt 0:00:01]} 54. Kd6 {[%emt 0:00:01]} b5 {[%emt 0:00:
31]} 55. axb5 {[%emt 0:00:05]} Rxb5 {[%emt 0:00:01]} 56. Rh6+ {[%emt 0:00:10]}
Kf5 {[%emt 0:00:15]} 57. f7 {[%emt 0:00:02]} Rb8 {[%emt 0:00:10]} 58. Rf6+ {
[%emt 0:00:05]} 1-0

[Event "European Rapid Championship 2021"]
[Site "Katowice"]
[Date "2021.12.18"]
[Round "4.11"]
[White "Putlak, Wojciech"]
[Black "Grabarczyk, Miroslaw"]
[Result "0-1"]
[ECO "D02"]
[WhiteElo "2000"]
[BlackElo "2373"]
[Annotator "ChessBase"]
[PlyCount "197"]
[EventDate "2021.12.18"]
[EventType "swiss"]
[EventCountry "POL"]
[SourceTitle "playchess.com"]
[Source "ChessBase"]
[SourceQuality "1"]
[TimeControl "900+10"]

1. Nf3 {[%emt 0:00:03]} d5 {[%emt 0:00:02]} 2. d4 {[%emt 0:00:04]} Nf6 {
[%emt 0:00:06]} 3. g3 {[%emt 0:00:09]} c5 {[%emt 0:00:12]} 4. c3 {[%emt 0:00:
13]} e6 {[%emt 0:00:37]} 5. Bg2 {[%emt 0:00:05]} Nc6 {[%emt 0:00:02]} 6. O-O {
[%emt 0:00:11]} Be7 {[%emt 0:00:02]} 7. Bg5 {[%emt 0:00:40]} O-O {[%emt 0:00:
07]} 8. e3 {[%emt 0:00:24]} h6 {[%emt 0:00:08]} 9. Bxf6 {[%emt 0:00:03]} Bxf6 {
[%emt 0:00:03]} 10. Nbd2 {[%emt 0:00:10]} Qe7 {[%emt 0:00:27]} 11. Re1 {
[%emt 0:00:10]} Rd8 {[%emt 0:00:04]} 12. Qc2 {[%emt 0:00:42]} Bd7 {[%emt 0:00:
23]} 13. Rad1 {[%emt 0:00:18]} Rac8 {[%emt 0:00:02]} 14. Qd3 {[%emt 0:00:34]}
Be8 {[%emt 0:00:14]} 15. Rc1 {[%emt 0:01:14]} g6 {[%emt 0:00:49]} 16. Qe2 {
[%emt 0:00:41]} Bg7 {[%emt 0:00:05]} 17. Nb3 {[%emt 0:00:24]} b6 {[%emt 0:00:
19]} 18. Nbd2 {[%emt 0:00:53]} Rc7 {[%emt 0:00:34]} 19. Qd1 {[%emt 0:00:24]}
Rdc8 {[%emt 0:00:17]} 20. Bf1 {[%emt 0:00:17]} Na5 {[%emt 0:02:50]} 21. Ba6 {
[%emt 0:00:13]} Rd8 {[%emt 0:00:01]} 22. Bf1 {[%emt 0:00:04]} Nb7 {[%emt 0:00:
06]} 23. Qb3 {[%emt 0:00:40]} Nd6 {[%emt 0:00:22]} 24. Qc2 {[%emt 0:00:37]}
Rdc8 {[%emt 0:00:42]} 25. Ba6 {[%emt 0:00:11]} Rb8 {[%emt 0:00:03]} 26. Bf1 {
[%emt 0:00:08]} a5 {[%emt 0:00:11]} 27. Rb1 {[%emt 0:00:31]} b5 {[%emt 0:00:47]
} 28. Nb3 {[%emt 0:00:37]} Nb7 {[%emt 0:00:17]} 29. Nxc5 {[%emt 0:01:22]} Nxc5
{[%emt 0:00:08]} 30. dxc5 {[%emt 0:00:02]} Qxc5 {[%emt 0:00:04]} 31. Qd2 {
[%emt 0:00:13]} b4 {[%emt 0:00:25]} 32. cxb4 {[%emt 0:00:14]} Qxb4 {[%emt 0:00:
06]} 33. Qxb4 {[%emt 0:00:38]} axb4 {[%emt 0:00:16]} 34. a3 {[%emt 0:01:35]}
Rcb7 {[%emt 0:00:52]} 35. axb4 {[%emt 0:00:10]} Rxb4 {[%emt 0:00:03]} 36. Re2 {
[%emt 0:00:47]} Bxb2 {[%emt 0:00:56]} 37. Ne1 {[%emt 0:00:28]} Bf6 {[%emt 0:00:
59]} 38. Rxb4 {[%emt 0:00:10]} Rxb4 {[%emt 0:00:01]} 39. Nd3 {[%emt 0:00:24]}
Rb1 {[%emt 0:00:07]} 40. Re1 {[%emt 0:00:08]} Rb8 {[%emt 0:00:04]} 41. Rc1 {
[%emt 0:00:13]} Kf8 {[%emt 0:00:14]} 42. Nc5 {[%emt 0:00:08]} Be7 {[%emt 0:00:
35]} 43. Na6 {[%emt 0:00:17]} Rd8 {[%emt 0:00:02]} 44. Nc7 {[%emt 0:00:19]} Bd7
{[%emt 0:00:08]} 45. Nb5 Rb8 {[%emt 0:00:28]} 46. Rb1 {[%emt 0:00:46]} Rc8 {
[%emt 0:00:17]} 47. Nd4 {[%emt 0:00:07]} Bf6 {[%emt 0:00:21]} 48. Nb5 {[%emt 0:
00:15]} Rc5 {[%emt 0:00:40]} 49. Nd6 {[%emt 0:00:29]} Ke7 {[%emt 0:00:12]} 50.
Nb5 {[%emt 0:00:02]} h5 {[%emt 0:00:56]} 51. h4 {[%emt 0:00:07]} Rc2 {[%emt 0:
00:43]} 52. Na3 {[%emt 0:00:13]} Rc7 {[%emt 0:00:27]} 53. Nb5 {[%emt 0:00:13]}
Rc5 {[%emt 0:00:41]} 54. Be2 {[%emt 0:00:20]} e5 {[%emt 0:00:18]} 55. Kf1 {
[%emt 0:00:18]} Bg7 {[%emt 0:01:17]} 56. Na3 {[%emt 0:00:27]} Rc7 {[%emt 0:00:
12]} 57. Nb5 {[%emt 0:00:07]} Rb7 {[%emt 0:00:07]} 58. Nc3 {[%emt 0:00:33]}
Rxb1+ {[%emt 0:00:03]} 59. Nxb1 {[%emt 0:00:02]} Kd6 {[%emt 0:00:10]} 60. Ke1 {
[%emt 0:00:04]} Kc5 {[%emt 0:00:05]} 61. Kd2 {[%emt 0:00:07]} Bf6 {[%emt 0:00:
03]} 62. Nc3 {[%emt 0:00:13]} Bd8 {[%emt 0:00:03]} 63. Bd1 {[%emt 0:00:56]} Ba5
{[%emt 0:00:09]} 64. Kc2 {[%emt 0:00:53]} Bf5+ {[%emt 0:00:21]} 65. Kb3 {
[%emt 0:00:07]} d4 {[%emt 0:00:06]} 66. Na4+ {[%emt 0:00:07]} Kd5 {[%emt 0:00:
25]} 67. exd4 {[%emt 0:00:22]} Kxd4 {[%emt 0:00:04]} 68. f3 {[%emt 0:01:35]}
Be1 {[%emt 0:00:21]} 69. g4 {[%emt 0:00:07]} hxg4 {[%emt 0:00:12]} 70. fxg4 {
[%emt 0:00:02]} Be6+ {[%emt 0:00:02]} 71. Kc2 {[%emt 0:00:16]} Bxh4 {[%emt 0:
00:03]} 72. Kd2 {[%emt 0:00:14]} e4 {[%emt 0:00:09]} 73. Nc3 {[%emt 0:00:08]}
e3+ {[%emt 0:00:43]} 74. Kc2 {[%emt 0:00:02]} Be1 {[%emt 0:00:03]} 75. Ne2+ {
[%emt 0:00:11]} Ke4 {[%emt 0:00:09]} 76. Nc1 {[%emt 0:00:12]} Bc4 {[%emt 0:00:
28]} 77. Be2 {[%emt 0:00:18]} Bxe2 {[%emt 0:00:12]} 78. Nxe2 {[%emt 0:00:02]}
Bd2 {[%emt 0:00:20]} 79. Ng1 {[%emt 0:00:13]} Kf4 {[%emt 0:00:08]} 80. Kd3 {
[%emt 0:00:04]} Kxg4 {[%emt 0:00:02]} 81. Ke2 {[%emt 0:00:05]} Kg3 {[%emt 0:00:
09]} 82. Nf3 {[%emt 0:00:03]} f6 {[%emt 0:00:04]} 83. Nd4 {[%emt 0:00:04]} f5 {
[%emt 0:00:07]} 84. Nf3 {[%emt 0:00:06]} Kf4 {[%emt 0:00:17]} 85. Nd4 {[%emt 0:
00:06]} g5 {[%emt 0:00:11]} 86. Ne6+ {[%emt 0:00:02]} Kg4 {[%emt 0:00:02]} 87.
Nd4 {[%emt 0:00:05]} f4 {[%emt 0:00:31]} 88. Nf3 {[%emt 0:00:12]} Bc3 {[%emt 0:
00:02]} 89. Ng1 {[%emt 0:00:19]} Kg3 {[%emt 0:00:06]} 90. Nf3 {[%emt 0:00:02]}
g4 {[%emt 0:00:11]} 91. Ng5 {[%emt 0:00:02]} Kg2 {[%emt 0:00:09]} 92. Ne4 {
[%emt 0:00:06]} Bd4 {[%emt 0:00:11]} 93. Kd3 {[%emt 0:00:06]} Bg7 {[%emt 0:00:
17]} 94. Nd6 {[%emt 0:00:05]} g3 {[%emt 0:00:24]} 95. Nf5 {[%emt 0:00:07]} Bf6
{[%emt 0:00:04]} 96. Ke2 {[%emt 0:00:11]} f3+ {[%emt 0:00:19]} 97. Kxe3 {
[%emt 0:00:02]} Bg5+ {[%emt 0:00:11]} 98. Ke4 {[%emt 0:00:09]} f2 {[%emt 0:00:
02]} 99. Kd4 0-1